{"text_format":"1","workbook":"xlsx","n_sheets":3,"sheets":["Sheet1","Sheet2","Sheet3"],"not_rendered":{"charts":0,"images":1,"macros":1,"external_links":0,"defined_names":1,"comments":0,"pivot_tables":0},"unopened":[],"bounds":{"document_bytes":16777216,"sheet_cells":100000,"rows_first":2000,"rows_last":500,"rows_between":2000,"halvings":0,"cell_chars":16384,"cell_head_chars":4096},"cells_cut":0,"cells_raw":0,"read":"whole","date_system":"1900"}

{"sheet":"Sheet1","index":0,"n_rows":101,"n_cols":37,"rows_kept":101,"cut":false,"hidden":false,"merged":[]}
["Pl","Namn","T     1   18/4","T     2    25/4"," T     3      2/5","T    4    9/5","T     5     16/5","T      6     23/5","T     7     30/5","T        8      13/6","T       9      20/6","T     10     27/6","T       11     4/7"," T     12      11/7","T     13   18/7","T       14     1/8","T    15     8/8","T     16     15/8","T     17    22/8","T     18    29/8","T    19   5/9","T     20     12/9",null,null,"S:a",1,2,3,4,5,"Tot"]
[1,"Katarina Lif",78,75,79,82,73,76,69,78,77,77,71,null,78,76,71,73,69,78,79,76,null,null,{"$f":"SUM(C2:X2)","v":1435},{"$f":"IF(ISERROR(SMALL($C2:$X2,Z$1)),0,IF($Y2=0,0,SMALL($C2:$X2,Z$1)))","v":69},69,71,71,73,{"$f":"SUM(Z2:AD2)","v":353},{"$f":"IF(IF(ISERROR(SMALL($C2:$X2,Z$1)),0,IF($Y2=0,0,SMALL($C2:$X2,Z$1)))=0,100,Z2)","v":69},{"$f":"IF(IF(ISERROR(SMALL($C2:$X2,AA$1)),0,IF($Y2=0,0,SMALL($C2:$X2,AA$1)))=0,100,AA2)","v":69},{"$f":"IF(IF(ISERROR(SMALL($C2:$X2,AB$1)),0,IF($Y2=0,0,SMALL($C2:$X2,AB$1)))=0,100,AB2)","v":71},{"$f":"IF(IF(ISERROR(SMALL($C2:$X2,AC$1)),0,IF($Y2=0,0,SMALL($C2:$X2,AC$1)))=0,100,AC2)","v":71},{"$f":"IF(IF(ISERROR(SMALL($C2:$X2,AD$1)),0,IF($Y2=0,0,SMALL($C2:$X2,AD$1)))=0,100,AD2)","v":73},{"$f":"SUM(AF2:AJ2)","v":353}]
[2,"Ulla Blomquist",null,72,73,79,72,83,74,77,75,75,70,78,75,72,73,72,71,68,79,null,null,null,1338,68,70,71,72,72,353,68,70,71,72,72,353]
[3,"Anita Möller",null,null,80,75,73,75,85,71,72,76,null,77,71,68,null,79,74,75,80,76,null,null,1207,68,71,71,72,73,355,68,71,71,72,73,355]
[4,"Elisabeth Wilander",null,null,81,73,83,77,74,72,83,null,null,70,null,null,70,71,77,78,73,null,null,null,982,70,70,71,72,73,356,70,70,71,72,73,356]
[5,"Lena Gustavsson",null,null,83,79,78,80,null,73,71,69,69,76,74,75,83,null,81,null,null,null,null,null,991,69,69,71,73,74,356,69,69,71,73,74,356]
[6,"Madelen Petersson",null,null,null,82,null,74,69,74,69,76,79,null,null,72,75,72,74,null,null,null,null,null,816,69,69,72,72,74,356,69,69,72,72,74,356]
[7,"Linda Lilja",null,null,78,null,75,78,86,75,74,80,81,71,null,70,78,83,71,72,77,73,null,null,1222,70,71,71,72,73,357,70,71,71,72,73,357]
[8,"Anita Sjöberg",null,null,79,null,81,72,76,75,71,78,82,71,75,69,81,76,null,79,null,null,null,null,1065,69,71,71,72,75,358,69,71,71,72,75,358]
[9,"Wanja Boij",null,null,73,72,75,80,null,null,null,null,null,73,77,null,70,null,73,80,73,null,null,null,746,70,72,73,73,73,361,70,72,73,73,73,361]
[10,"Christina Fransson",null,null,82,82,84,79,73,79,null,88,78,72,69,76,73,75,75,null,79,78,null,null,1242,69,72,73,73,75,362,69,72,73,73,75,362]
[11,"Gunn Bravell",null,null,78,null,null,null,null,null,null,73,73,null,null,null,76,74,70,73,null,85,null,null,602,{"$f":"IF(ISERROR(SMALL($C12:$X12,Z$1)),0,IF($Y12=0,0,SMALL($C12:$X12,Z$1)))","v":70},73,73,73,74,363,70,73,73,73,74,363]
[12,"Emelie Högström",null,null,null,null,null,null,null,74,76,78,null,null,73,78,null,null,null,69,74,null,null,null,522,69,73,74,74,76,366,69,73,74,74,76,366]
[13,"Maria Sundell-Helgesson",null,null,88,null,83,null,null,null,77,null,78,70,78,73,77,76,null,71,77,76,null,null,924,70,71,73,76,76,366,70,71,73,76,76,366]
[14,"Ann-Marie Ljunggren",null,null,null,null,null,null,null,73,76,null,null,70,null,83,null,69,null,79,null,null,null,null,450,69,70,73,76,79,367,69,70,73,76,79,367]
[15,"Marie Engsén",null,null,74,null,null,null,null,80,74,80,null,75,72,74,73,null,null,null,null,null,null,null,602,72,73,74,74,74,367,72,73,74,74,74,367]
[16,"Jessika Friberg",83,null,84,84,77,78,87,75,75,null,75,null,75,76,82,70,75,73,84,76,null,null,1329,70,73,75,75,75,368,70,73,75,75,75,368]
[17,"Malin Ekeflo",null,null,null,null,null,null,null,null,76,null,null,null,75,80,71,75,80,74,null,null,null,null,531,71,74,75,75,76,371,71,74,75,75,76,371]
[18,"Sofie Brangenfeldt",null,null,73,76,null,77,76,78,76,84,null,73,null,null,null,74,76,null,null,null,null,null,763,73,73,74,76,76,372,73,73,74,76,76,372]
[19,"Christina Clasén",null,null,null,null,82,77,86,83,75,84,78,73,79,76,83,85,null,79,null,null,null,null,1040,73,75,76,77,78,379,73,75,76,77,78,379]
[20,"Charlotte Carp",null,null,null,null,null,null,86,null,80,78,null,null,null,null,null,74,null,null,null,null,null,null,318,74,78,80,86,0,318,74,78,80,86,100,418]
[21,"Kerstin Sundström",null,null,95,null,81,null,null,null,79,null,null,null,null,null,84,85,null,null,null,null,null,null,424,{"$f":"IF(ISERROR(SMALL($C22:$X22,Z$1)),0,IF($Y22=0,0,SMALL($C22:$X22,Z$1)))","v":79},81,84,85,95,424,79,81,84,85,95,424]
[22,null,null,null,null,null,null,null,null,null,null,null,null,null,null,null,null,null,null,null,null,null,null,null,0,0,0,0,0,0,0,100,100,100,100,100,500]
[23,null,null,null,null,null,null,null,null,null,null,null,null,null,null,null,null,null,null,null,null,null,null,null,0,0,0,0,0,0,0,100,100,100,100,100,500]
[24,null,null,null,null,null,null,null,null,null,null,null,null,null,null,null,null,null,null,null,null,null,null,null,0,0,0,0,0,0,0,100,100,100,100,100,500]
[25,null,null,null,null,null,null,null,null,null,null,null,null,null,null,null,null,null,null,null,null,null,null,null,0,0,0,0,0,0,0,100,100,100,100,100,500]
[26,null,null,null,null,null,null,null,null,null,null,null,null,null,null,null,null,null,null,null,null,null,null,null,0,0,0,0,0,0,0,100,100,100,100,100,500]
[27,null,null,null,null,null,null,null,null,null,null,null,null,null,null,null,null,null,null,null,null,null,null,null,0,0,0,0,0,0,0,100,100,100,100,100,500]
[28,null,null,null,null,null,null,null,null,null,null,null,null,null,null,null,null,null,null,null,null,null,null,null,0,0,0,0,0,0,0,100,100,100,100,100,500]
[29,null,null,null,null,null,null,null,null,null,null,null,null,null,null,null,null,null,null,null,null,null,null,null,0,0,0,0,0,0,0,100,100,100,100,100,500]
[30,null,null,null,null,null,null,null,null,null,null,null,null,null,null,null,null,null,null,null,null,null,null,null,0,0,0,0,0,0,0,100,100,100,100,100,500]
[31,null,null,null,null,null,null,null,null,null,null,null,null,null,null,null,null,null,null,null,null,null,null,null,0,{"$f":"IF(ISERROR(SMALL($C32:$X32,Z$1)),0,IF($Y32=0,0,SMALL($C32:$X32,Z$1)))","v":0},0,0,0,0,0,100,100,100,100,100,500]
[32,null,null,null,null,null,null,null,null,null,null,null,null,null,null,null,null,null,null,null,null,null,null,null,0,0,0,0,0,0,0,100,100,100,100,100,500]
[33,null,null,null,null,null,null,null,null,null,null,null,null,null,null,null,null,null,null,null,null,null,null,null,{"$f":"SUM(C34:X34)","v":0},0,0,0,0,0,{"$f":"SUM(Z34:AD34)","v":0},{"$f":"IF(IF(ISERROR(SMALL($C34:$X34,Z$1)),0,IF($Y34=0,0,SMALL($C34:$X34,Z$1)))=0,100,Z34)","v":100},{"$f":"IF(IF(ISERROR(SMALL($C34:$X34,AA$1)),0,IF($Y34=0,0,SMALL($C34:$X34,AA$1)))=0,100,AA34)","v":100},{"$f":"IF(IF(ISERROR(SMALL($C34:$X34,AB$1)),0,IF($Y34=0,0,SMALL($C34:$X34,AB$1)))=0,100,AB34)","v":100},{"$f":"IF(IF(ISERROR(SMALL($C34:$X34,AC$1)),0,IF($Y34=0,0,SMALL($C34:$X34,AC$1)))=0,100,AC34)","v":100},{"$f":"IF(IF(ISERROR(SMALL($C34:$X34,AD$1)),0,IF($Y34=0,0,SMALL($C34:$X34,AD$1)))=0,100,AD34)","v":100},{"$f":"SUM(AF34:AJ34)","v":500}]
[34,null,null,null,null,null,null,null,null,null,null,null,null,null,null,null,null,null,null,null,null,null,null,null,0,0,0,0,0,0,0,100,100,100,100,100,500]
[35,null,null,null,null,null,null,null,null,null,null,null,null,null,null,null,null,null,null,null,null,null,null,null,0,0,0,0,0,0,0,100,100,100,100,100,500]
[36,null,null,null,null,null,null,null,null,null,null,null,null,null,null,null,null,null,null,null,null,null,null,null,0,0,0,0,0,0,0,100,100,100,100,100,500]
[37,null,null,null,null,null,null,null,null,null,null,null,null,null,null,null,null,null,null,null,null,null,null,null,0,0,0,0,0,0,0,100,100,100,100,100,500]
[38,null,null,null,null,null,null,null,null,null,null,null,null,null,null,null,null,null,null,null,null,null,null,null,0,0,0,0,0,0,0,100,100,100,100,100,500]
[39,null,null,null,null,null,null,null,null,null,null,null,null,null,null,null,null,null,null,null,null,null,null,null,0,0,0,0,0,0,0,100,100,100,100,100,500]
[40,null,null,null,null,null,null,null,null,null,null,null,null,null,null,null,null,null,null,null,null,null,null,null,0,0,0,0,0,0,0,100,100,100,100,100,500]
[41,null,null,null,null,null,null,null,null,null,null,null,null,null,null,null,null,null,null,null,null,null,null,null,0,{"$f":"IF(ISERROR(SMALL($C42:$X42,Z$1)),0,IF($Y42=0,0,SMALL($C42:$X42,Z$1)))","v":0},0,0,0,0,0,100,100,100,100,100,500]
[42,null,null,null,null,null,null,null,null,null,null,null,null,null,null,null,null,null,null,null,null,null,null,null,0,0,0,0,0,0,0,100,100,100,100,100,500]
[43,null,null,null,null,null,null,null,null,null,null,null,null,null,null,null,null,null,null,null,null,null,null,null,0,0,0,0,0,0,0,100,100,100,100,100,500]
[44,null,null,null,null,null,null,null,null,null,null,null,null,null,null,null,null,null,null,null,null,null,null,null,0,0,0,0,0,0,0,100,100,100,100,100,500]
[45,null,null,null,null,null,null,null,null,null,null,null,null,null,null,null,null,null,null,null,null,null,null,null,0,0,0,0,0,0,0,100,100,100,100,100,500]
[46,null,null,null,null,null,null,null,null,null,null,null,null,null,null,null,null,null,null,null,null,null,null,null,0,0,0,0,0,0,0,100,100,100,100,100,500]
[47,null,null,null,null,null,null,null,null,null,null,null,null,null,null,null,null,null,null,null,null,null,null,null,0,0,0,0,0,0,0,100,100,100,100,100,500]
[48,null,null,null,null,null,null,null,null,null,null,null,null,null,null,null,null,null,null,null,null,null,null,null,0,0,0,0,0,0,0,100,100,100,100,100,500]
[49,null,null,null,null,null,null,null,null,null,null,null,null,null,null,null,null,null,null,null,null,null,null,null,0,0,0,0,0,0,0,100,100,100,100,100,500]
[50,null,null,null,null,null,null,null,null,null,null,null,null,null,null,null,null,null,null,null,null,null,null,null,0,0,0,0,0,0,0,100,100,100,100,100,500]
[51,null,null,null,null,null,null,null,null,null,null,null,null,null,null,null,null,null,null,null,null,null,null,null,0,{"$f":"IF(ISERROR(SMALL($C52:$X52,Z$1)),0,IF($Y52=0,0,SMALL($C52:$X52,Z$1)))","v":0},0,0,0,0,0,100,100,100,100,100,500]
[52,null,null,null,null,null,null,null,null,null,null,null,null,null,null,null,null,null,null,null,null,null,null,null,0,0,0,0,0,0,0,100,100,100,100,100,500]
[53,null,null,null,null,null,null,null,null,null,null,null,null,null,null,null,null,null,null,null,null,null,null,null,0,0,0,0,0,0,0,100,100,100,100,100,500]
[54,null,null,null,null,null,null,null,null,null,null,null,null,null,null,null,null,null,null,null,null,null,null,null,0,0,0,0,0,0,0,100,100,100,100,100,500]
[55,null,null,null,null,null,null,null,null,null,null,null,null,null,null,null,null,null,null,null,null,null,null,null,0,0,0,0,0,0,0,100,100,100,100,100,500]
[56,null,null,null,null,null,null,null,null,null,null,null,null,null,null,null,null,null,null,null,null,null,null,null,0,0,0,0,0,0,0,100,100,100,100,100,500]
[57,null,null,null,null,null,null,null,null,null,null,null,null,null,null,null,null,null,null,null,null,null,null,null,0,0,0,0,0,0,0,100,100,100,100,100,500]
[58,null,null,null,null,null,null,null,null,null,null,null,null,null,null,null,null,null,null,null,null,null,null,null,0,0,0,0,0,0,0,100,100,100,100,100,500]
[59,null,null,null,null,null,null,null,null,null,null,null,null,null,null,null,null,null,null,null,null,null,null,null,0,0,0,0,0,0,0,100,100,100,100,100,500]
[60,null,null,null,null,null,null,null,null,null,null,null,null,null,null,null,null,null,null,null,null,null,null,null,0,0,0,0,0,0,0,100,100,100,100,100,500]
[61,null,null,null,null,null,null,null,null,null,null,null,null,null,null,null,null,null,null,null,null,null,null,null,0,{"$f":"IF(ISERROR(SMALL($C62:$X62,Z$1)),0,IF($Y62=0,0,SMALL($C62:$X62,Z$1)))","v":0},0,0,0,0,0,100,100,100,100,100,500]
[62,null,null,null,null,null,null,null,null,null,null,null,null,null,null,null,null,null,null,null,null,null,null,null,0,0,0,0,0,0,0,100,100,100,100,100,500]
[63,null,null,null,null,null,null,null,null,null,null,null,null,null,null,null,null,null,null,null,null,null,null,null,0,0,0,0,0,0,0,100,100,100,100,100,500]
[64,null,null,null,null,null,null,null,null,null,null,null,null,null,null,null,null,null,null,null,null,null,null,null,0,0,0,0,0,0,0,100,100,100,100,100,500]
[65,null,null,null,null,null,null,null,null,null,null,null,null,null,null,null,null,null,null,null,null,null,null,null,{"$f":"SUM(C66:X66)","v":0},0,0,0,0,0,{"$f":"SUM(Z66:AD66)","v":0},{"$f":"IF(IF(ISERROR(SMALL($C66:$X66,Z$1)),0,IF($Y66=0,0,SMALL($C66:$X66,Z$1)))=0,100,Z66)","v":100},{"$f":"IF(IF(ISERROR(SMALL($C66:$X66,AA$1)),0,IF($Y66=0,0,SMALL($C66:$X66,AA$1)))=0,100,AA66)","v":100},{"$f":"IF(IF(ISERROR(SMALL($C66:$X66,AB$1)),0,IF($Y66=0,0,SMALL($C66:$X66,AB$1)))=0,100,AB66)","v":100},{"$f":"IF(IF(ISERROR(SMALL($C66:$X66,AC$1)),0,IF($Y66=0,0,SMALL($C66:$X66,AC$1)))=0,100,AC66)","v":100},{"$f":"IF(IF(ISERROR(SMALL($C66:$X66,AD$1)),0,IF($Y66=0,0,SMALL($C66:$X66,AD$1)))=0,100,AD66)","v":100},{"$f":"SUM(AF66:AJ66)","v":500}]
[66,null,null,null,null,null,null,null,null,null,null,null,null,null,null,null,null,null,null,null,null,null,null,null,0,0,0,0,0,0,0,100,100,100,100,100,500]
[67,null,null,null,null,null,null,null,null,null,null,null,null,null,null,null,null,null,null,null,null,null,null,null,0,0,0,0,0,0,0,100,100,100,100,100,500]
[68,null,null,null,null,null,null,null,null,null,null,null,null,null,null,null,null,null,null,null,null,null,null,null,0,0,0,0,0,0,0,100,100,100,100,100,500]
[69,null,null,null,null,null,null,null,null,null,null,null,null,null,null,null,null,null,null,null,null,null,null,null,0,0,0,0,0,0,0,100,100,100,100,100,500]
[70,null,null,null,null,null,null,null,null,null,null,null,null,null,null,null,null,null,null,null,null,null,null,null,0,0,0,0,0,0,0,100,100,100,100,100,500]
[71,null,null,null,null,null,null,null,null,null,null,null,null,null,null,null,null,null,null,null,null,null,null,null,0,{"$f":"IF(ISERROR(SMALL($C72:$X72,Z$1)),0,IF($Y72=0,0,SMALL($C72:$X72,Z$1)))","v":0},0,0,0,0,0,100,100,100,100,100,500]
[72,null,null,null,null,null,null,null,null,null,null,null,null,null,null,null,null,null,null,null,null,null,null,null,0,0,0,0,0,0,0,100,100,100,100,100,500]
[73,null,null,null,null,null,null,null,null,null,null,null,null,null,null,null,null,null,null,null,null,null,null,null,0,0,0,0,0,0,0,100,100,100,100,100,500]
[74,null,null,null,null,null,null,null,null,null,null,null,null,null,null,null,null,null,null,null,null,null,null,null,0,0,0,0,0,0,0,100,100,100,100,100,500]
[75,null,null,null,null,null,null,null,null,null,null,null,null,null,null,null,null,null,null,null,null,null,null,null,0,0,0,0,0,0,0,100,100,100,100,100,500]
[76,null,null,null,null,null,null,null,null,null,null,null,null,null,null,null,null,null,null,null,null,null,null,null,0,0,0,0,0,0,0,100,100,100,100,100,500]
[77,null,null,null,null,null,null,null,null,null,null,null,null,null,null,null,null,null,null,null,null,null,null,null,0,0,0,0,0,0,0,100,100,100,100,100,500]
[78,null,null,null,null,null,null,null,null,null,null,null,null,null,null,null,null,null,null,null,null,null,null,null,0,0,0,0,0,0,0,100,100,100,100,100,500]
[79,null,null,null,null,null,null,null,null,null,null,null,null,null,null,null,null,null,null,null,null,null,null,null,0,0,0,0,0,0,0,100,100,100,100,100,500]
[80,null,null,null,null,null,null,null,null,null,null,null,null,null,null,null,null,null,null,null,null,null,null,null,0,0,0,0,0,0,0,100,100,100,100,100,500]
[81,null,null,null,null,null,null,null,null,null,null,null,null,null,null,null,null,null,null,null,null,null,null,null,0,{"$f":"IF(ISERROR(SMALL($C82:$X82,Z$1)),0,IF($Y82=0,0,SMALL($C82:$X82,Z$1)))","v":0},0,0,0,0,0,100,100,100,100,100,500]
[82,null,null,null,null,null,null,null,null,null,null,null,null,null,null,null,null,null,null,null,null,null,null,null,0,0,0,0,0,0,0,100,100,100,100,100,500]
[83,null,null,null,null,null,null,null,null,null,null,null,null,null,null,null,null,null,null,null,null,null,null,null,0,0,0,0,0,0,0,100,100,100,100,100,500]
[84,null,null,null,null,null,null,null,null,null,null,null,null,null,null,null,null,null,null,null,null,null,null,null,0,0,0,0,0,0,0,100,100,100,100,100,500]
[85,null,null,null,null,null,null,null,null,null,null,null,null,null,null,null,null,null,null,null,null,null,null,null,0,0,0,0,0,0,0,100,100,100,100,100,500]
[86,null,null,null,null,null,null,null,null,null,null,null,null,null,null,null,null,null,null,null,null,null,null,null,0,0,0,0,0,0,0,100,100,100,100,100,500]
[87,null,null,null,null,null,null,null,null,null,null,null,null,null,null,null,null,null,null,null,null,null,null,null,0,0,0,0,0,0,0,100,100,100,100,100,500]
[88,null,null,null,null,null,null,null,null,null,null,null,null,null,null,null,null,null,null,null,null,null,null,null,0,0,0,0,0,0,0,100,100,100,100,100,500]
[89,null,null,null,null,null,null,null,null,null,null,null,null,null,null,null,null,null,null,null,null,null,null,null,0,0,0,0,0,0,0,100,100,100,100,100,500]
[90,null,null,null,null,null,null,null,null,null,null,null,null,null,null,null,null,null,null,null,null,null,null,null,0,0,0,0,0,0,0,100,100,100,100,100,500]
[91,null,null,null,null,null,null,null,null,null,null,null,null,null,null,null,null,null,null,null,null,null,null,null,0,{"$f":"IF(ISERROR(SMALL($C92:$X92,Z$1)),0,IF($Y92=0,0,SMALL($C92:$X92,Z$1)))","v":0},0,0,0,0,0,100,100,100,100,100,500]
[92,null,null,null,null,null,null,null,null,null,null,null,null,null,null,null,null,null,null,null,null,null,null,null,0,0,0,0,0,0,0,100,100,100,100,100,500]
[93,null,null,null,null,null,null,null,null,null,null,null,null,null,null,null,null,null,null,null,null,null,null,null,0,0,0,0,0,0,0,100,100,100,100,100,500]
[94,null,null,null,null,null,null,null,null,null,null,null,null,null,null,null,null,null,null,null,null,null,null,null,0,0,0,0,0,0,0,100,100,100,100,100,500]
[95,null,null,null,null,null,null,null,null,null,null,null,null,null,null,null,null,null,null,null,null,null,null,null,0,0,0,0,0,0,0,100,100,100,100,100,500]
[96,null,null,null,null,null,null,null,null,null,null,null,null,null,null,null,null,null,null,null,null,null,null,null,0,0,0,0,0,0,0,100,100,100,100,100,500]
[97,null,null,null,null,null,null,null,null,null,null,null,null,null,null,null,null,null,null,null,null,null,null,null,{"$f":"SUM(C98:X98)","v":0},0,0,0,0,0,{"$f":"SUM(Z98:AD98)","v":0},100,100,100,100,100,{"$f":"SUM(AF98:AJ98)","v":500}]
[98,null,null,null,null,null,null,null,null,null,null,null,null,null,null,null,null,null,null,null,null,null,null,null,0,0,0,0,0,0,0,100,100,100,100,100,500]
[99,null,null,null,null,null,null,null,null,null,null,null,null,null,null,null,null,null,null,null,null,null,null,null,0,0,0,0,0,0,0,100,100,100,100,100,500]
[100,null,null,null,null,null,null,null,null,null,null,null,null,null,null,null,null,null,null,null,null,null,null,null,{"$f":"SUM(C101:X101)","v":0},{"$f":"IF(ISERROR(SMALL($C101:$X101,Z$1)),0,IF($Y101=0,0,SMALL($C101:$X101,Z$1)))","v":0},0,0,0,0,{"$f":"SUM(Z101:AD101)","v":0}]

{"sheet":"Sheet2","index":1,"n_rows":0,"n_cols":0,"rows_kept":0,"cut":false,"hidden":false,"merged":[]}

{"sheet":"Sheet3","index":2,"n_rows":0,"n_cols":0,"rows_kept":0,"cut":false,"hidden":false,"merged":[]}